Cogmind - Beta 13 @@@ ROGUE MODE // 2024.04.01 @ 18:57:37 Player: chexo4 Result: Destroyed by G-47 Trooper with Particle Gun Performance ------------- Evolutions (1) 500 Regions Visited (2) 400 Robots Destroyed (36) 180 Value Destroyed (758) 758 Prototype IDs (0) 0 Alien Tech Used (0) 0 Bonus (0) 0 TOTAL SCORE: 1838 Bonus ------- None Cogmind --------- Core Integrity 0/400 Matter 300/300 Energy 100/100 System Corruption 0% Temperature Cool (9) Movement Core (350) Ox6 Location -9/Materials Parts ------- > --- POWER (1) -------- (None) > --- PROPULSION (4) --- (None) > --- UTILITY (2) ------ Large Storage Unit > --- WEAPON (2) ------- (None) > --- INVENTORY (15) --- (None) Peak State ------------ > --- POWER ------------ Improved Ion Engine > --- PROPULSION ------- Aluminum Leg Aluminum Leg Aluminum Leg Aluminum Leg > --- UTILITY ---------- Huge Storage Unit Shield Generator > --- WEAPON ----------- Beam Rifle Light Assault Rifle > --- INVENTORY -------- Aluminum Leg Aluminum Leg Light Assault Rifle [Rating: 12] Favorites ----------- Power Light Ion Engine Engine Light Ion Engine Propulsion Aluminum Leg Treads Light Treads Leg Aluminum Leg Wheel Wheel Hover Unit Hover Unit Flight Unit Flight Unit Utility Large Storage Unit Device Shield Generator Storage Large Storage Unit Weapon Light Assault Rifle Energy Gun Beam Rifle Ballistic Gun Light Assault Rifle Launcher Grenade Launcher Special Weapon Mining Laser Build | -11 -10 -9 ------- Run | Yrd Mat Mat Slots Evolved 2 | . . 2 Power . | . . . Propulsion 2 | . . 2 Utility . | . . . Weapon . | . . . Parts Attached 48 | 11 12 25 Power 3 | 2 . 1 Engine 3 | 2 . 1 Core . | . . . Reactor . | . . . Propulsion 19 | 2 3 14 Treads 2 | . . 2 Leg 13 | 2 2 9 Wheel 1 | . 1 . Hover 1 | . . 1 Flight 2 | . . 2 Utility 15 | 2 6 7 Device 8 | 1 3 4 Storage 7 | 1 3 3 Processor . | . . . Hackware . | . . . Protection . | . . . Artifact . | . . . Weapon 11 | 5 3 3 Energy Gun 3 | 2 . 1 Energy Cannon . | . . . Ballistic Gun 6 | 2 2 2 Ballistic Cannon . | . . . Launcher 1 | . 1 . Special Weapon 1 | 1 . . Impact Weapon . | . . . Slashing Weapon . | . . . Piercing Weapon . | . . . Special Melee Weapon . | . . . Unidentified Prototypes . | . . . Parts Lost 13 | . 5 8 Power 2 | . . 2 Propulsion 4 | . 1 3 Utility 2 | . 1 1 Weapon 5 | . 3 2 Highest Loss Streak 6 | . 5 6 To Critical Strikes . | . . . Average Slot Usage (%) 85 | . 91 82 Engine 11 | . 14 9 Treads 1 | . . 2 Leg 25 | . 27 24 Flight 1 | . . 3 Device 9 | . 9 10 Storage 12 | . 14 11 Energy Gun 4 | . . 7 Ballistic Gun 13 | . 15 12 Special Weapon 3 | . 9 . Naked Turns . | . . . Heaviest Build 93 | 8 28 93 Greatest Support 40 | 20 20 40 Greatest Overweight (x) 8 | . 2 8 Average Overweight (x) . | . . 1 Largest Inventory Capacity 25 | 5 15 25 Average Capacity 14 | 5 14 17 Most Carried 8 | 5 8 3 Average Carried 2 | 3 5 . Final Capacity 15 | 5 15 15 Final Carried 4 | 4 4 . Class Distribution -------------------- 68% | Mutant 31% | Scavenger-Mutant Dominant Class ---------------- Mutant | -10/Materials Scavenger-Mutant | -9/Materials Resources | -11 -10 -9 ----------- Run | Yrd Mat Mat Matter Collected 861 | 368 150 343 Remotely . | . . . Salvage Created 921 | 118 295 508 Parts 79 | 12 21 46 Haulers Intercepted . | . . . Recyclers Shooed 2 | . 1 1 Parts Field Recycled . | . . . Retrieved Matter . | . . . Parts Self-Destructed . | . . . Prevented . | . . . Kills | -11 -10 -9 ------- Run | Yrd Mat Mat Combat Hostiles Destroyed 25 | 1 10 14 Guns 19 | 1 4 14 Cannons 2 | . 2 . AOE 4 | . 4 . Classes Destroyed 8 | 3 3 2 Worker 3 | 1 . 2 Builder 3 | . 2 1 Tunneler 3 | 3 . . Recycler 1 | . 1 . Watcher 1 | . . 1 Swarmer 9 | . 3 6 Grunt 13 | 1 7 5 Sentry 3 | . . 3 Best Kill Streak 12 | 4 12 5 Combat Bots Only 10 | 1 10 5 Max Kills in Single Turn 3 | 1 3 1 Gunslinging . | . . . Exploded 3 | . 3 . Melee . | . . . Uniques/NPCs Destroyed . | . . . Combat | -11 -10 -9 -------- Run | Yrd Mat Mat Hostile Shots Fired 288 | 3 84 201 Missed 93 | . 23 70 Damage Taken 1867 | 33 694 1140 Core 568 | . 167 401 Absorbed by Shields 308 | . . 308 Regen/Repaired (Parts) 70 | . . 70 Core Remaining (%) 66 | 100 33 . Volleys Fired 99 | 8 24 67 Largest 2 | 2 2 2 Hottest 120 | 60 120 76 Shots Fired 175 | 16 39 120 Gun 162 | 16 26 120 Cannon . | . . . Launcher 4 | . 4 . Special 9 | . 9 . Kinetic 112 | 8 26 78 Thermal 59 | 8 9 42 Explosive 4 | . 4 . Electromagnetic . | . . . Robot Hit Streak 13 | 4 5 13 Robot Miss Streak 5 | 1 3 5 Penetration Max . | . . . Secondary Targets 3 | . . 3 Max Gunslinging Chain 1 | . . 1 Shots Hit Robots 100 | 10 22 68 Core Hits 70 | 8 21 41 Critical Kills 1 | . . 1 Critical Parts Destroyed 1 | . . 1 Critical Strikes 3 | . . 3 Burn 1 | . . 1 Destroy 2 | . . 2 Melee Attacks . | . . . Impact . | . . . Slashing . | . . . Piercing . | . . . Sneak Attacks . | . . . Combat Hostiles . | . . . Follow-up Attacks . | . . . Damage Inflicted 1520 | 96 698 726 Guns 980 | 96 181 703 Cannons . | . . . Explosions 419 | . 419 . Melee . | . . . Ramming 25 | . 2 23 Kinetic 662 | 51 181 430 Thermal 414 | 45 96 273 Explosive 419 | . 419 . Electromagnetic . | . . . Impact . | . . . Slashing . | . . . Piercing . | . . . Highest Corruption . | . . . Average Corruption . | . . . Corruption Purged . | . . . Corruption Blocked . | . . . Overload Shots . | . . . Overflow Damage 1 | . 1 . Projectiles . | . . . Explosions 1 | . 1 . Melee . | . . . Knockbacks . | . . . Impact . | . . . Kinetic . | . . . Secondary . | . . . Self-Inflicted Damage 95 | . 95 . Shots 3 | . 3 . Rammed 3 | . . 3 Targets Rammed 14 | . 1 13 Kicked 10 | . 1 9 Crushed 1 | . . 1 Highest Temperature 230 | 40 152 230 Average Temperature 52 | 19 54 55 Received Heat Transfer 712 | 18 222 472 Siege Activations . | . . . Robots Corrupted . | . . . Combat Hostiles . | . . . Parts Fried . | . . . Impact Corruptions . | . . . Robots Melted . | . . . Combat Hostiles . | . . . Parts Melted 3 | . . 3 Heat Transferred 1077 | 100 200 777 Parts Sabotaged . | . . . Parts Stolen . | . . . Parts Stripped . | . . . Power Chain Reactions . | . . . Alert | -11 -10 -9 ------- Run | Yrd Mat Mat Peak Influence 372 | 40 372 338 Initial 78 | . 26 78 Average 123 | 20 124 152 Maximum Alert Level 1 | . 1 1 Low Security (%) 84 | 100 75 85 Level 1 15 | . 24 14 Level 2 . | . . . Level 3 . | . . . Level 4 . | . . . Level 5 . | . . . High Security . | . . . Max Security . | . . . Squads Dispatched 4 | . 3 1 Investigation 4 | . 3 1 Extermination . | . . . Reinforcement . | . . . Assault . | . . . Garrison . | . . . Intercept . | . . . Searches Triggered . | . . . Construction Impeded . | . . . Haulers Reinforced . | . . . Active Scanning Responses . | . . . Cargo Convoy Interrupts . | . . . Stealth | -11 -10 -9 --------- Run | Yrd Mat Mat Distress Signals 5 | . 2 3 Communications Jammed . | . . . Distress Signals . | . . . Times Spotted 46 | 1 18 27 Peak Tracking Total 12 | 1 12 5 Tactical Retreats 1 | . 1 . Traps | -11 -10 -9 ------- Run | Yrd Mat Mat Traps Triggered 1 | . 1 . Indirectly . | . . . Trap Hack Attempts . | . . . Triggered . | . . . Disarmed . | . . . Reprogrammed . | . . . Reused . | . . . Traps Extracted . | . . . Installed . | . . . Triggered . | . . . Machines | -11 -10 -9 ---------- Run | Yrd Mat Mat Machines Disabled 3 | . 2 1 Max in Single Turn 2 | . 2 1 Machines Repaired . | . . . Machines Dismantled . | . . . Machines Sabotaged . | . . . Overloaded Fab Kills . | . . . Hacking | -11 -10 -9 --------- Run | Yrd Mat Mat Machines Accessed 4 | . 2 2 Terminals 2 | . 1 1 Fabricators . | . . . Repair Stations 1 | . . 1 Recycling Units 1 | . 1 . Scanalyzers . | . . . Garrison Access . | . . . Total Hacks 15 | . 6 9 Successful 12 | . 4 8 Failed 3 | . 2 1 Catastrophic 1 | . 1 . Database Lockouts . | . . . Manual 3 | . 1 2 Terminals 6 | . 2 4 Fabricators . | . . . Repair Stations 5 | . . 5 Recycling Units 4 | . 4 . Scanalyzers . | . . . Garrison Access . | . . . Terminal Hacks 4 | . . 4 Record 2 | . . 2 Unreport Threat 1 | . . 1 Recall Investigation 1 | . . 1 Fabricator Hacks . | . . . Repair Station Hacks 4 | . . 4 Scan Component 2 | . . 2 Repair 2 | . . 2 Recycling Unit Hacks 4 | . 4 . Recycle Component 2 | . 2 . Process 1 | . 1 . Report Inventory 1 | . 1 . Scanalyzer . | . . . Garrison Access Hacks . | . . . Unauthorized Hacks . | . . . Terminals . | . . . Fabricators . | . . . Repair Stations . | . . . Recycling Units . | . . . Scanalyzers . | . . . Garrison Access . | . . . Data Cores Recovered . | . . . Used . | . . . Hacking Detections 3 | . 2 1 Full Trace Events 3 | . 2 1 Feedback Events . | . . . Feedback Blocked . | . . . Robot Schematics Acquired . | . . . Robots Built . | . . . Authchips . | . . . Time . | . . . Total Robot Build Rating . | . . . Part Schematics Acquired . | . . . Parts Built . | . . . Authchips . | . . . Time . | . . . Total Part Build Rating . | . . . Parts Repaired 2 | . . 2 Time 52 | . . 52 Parts Recycled 2 | . 2 . Recycled Matter 12 | . 12 . Retrieved Matter . | . . . Retrieved Components . | . . . Parts Scanalyzed . | . . . Part Schematics Acquired . | . . . Parts Damaged . | . . . Bothacking | -11 -10 -9 ------------ Run | Yrd Mat Mat Used RIF Installer . | . . . Robots Hacked . | . . . Non-combat . | . . . Combat . | . . . Robot Hacks Applied . | . . . Relay Couplers Released . | . . . Fabnet Peak Effective % . | . . . Robots Rewired . | . . . Allies Hacked . | . . . Hacks Repelled . | . . . Allies | -11 -10 -9 -------- Run | Yrd Mat Mat Total Allies . | . . . Largest Group . | . . . Highest-Rated Group . | . . . Highest-Rated Ally . | . . . Total Orders . | . . . Ally Attacks . | . . . Total Damage . | . . . Kills . | . . . Allies Corrupted . | . . . Allies Melted . | . . . Intel | -11 -10 -9 ------- Run | Yrd Mat Mat Robot Analysis Total . | . . . Derelict Logs Recovered . | . . . Drone Launches . | . . . Drone Recoveries . | . . . Exploration | -11 -10 -9 ------------- Run | Yrd Mat Mat Turns Passed 1357 | 199 435 723 Spaces Moved 544 | 142 183 219 Core 27 | 26 . 1 Treads 25 | . . 25 Legs 466 | 116 178 172 Wheels 5 | . 5 . Hover 2 | . . 2 Flight 19 | . . 19 Fastest Speed 50 | 50 110 120 Average Speed 173 | 107 180 209 Slowest Speed 680 | 120 260 680 Overloaded Moves . | . . . Propulsion Burnouts . | . . . Robots Hopped . | . . . Cave-ins Triggered . | . . . Exploration Rate (%) 13 | 6 25 10 Regions Visited 2 Branch Regions . Pre-discovered Areas . | . . . Known Exits Taken . | . . . Unknown Exits Taken 2 | 1 1 . Scrap Searched . | . . . Spaces Dug 2 | . 2 . Terrain Destroyed 21 | . 21 . Melee . | . . . Projectile 4 | . 4 . AOE 17 | . 17 . Terrain Rammed . | . . . Walls Destroyed . | . . . Machines Disabled . | . . . Actions | -11 -10 -9 --------- Run | Yrd Mat Mat Total 773 | 176 233 364 Wait . | . . . Move 542 | 141 182 219 Hop . | . . . Pick Up 40 | 12 8 20 Fast Attach 1 | . 1 . Attach 28 | 11 8 9 Detach 7 | 3 4 . Swap 19 | . 3 16 Drop 23 | 1 2 20 Fire 99 | 8 24 67 Melee . | . . . Ram 3 | . . 3 Kick 10 | . 1 9 Crush 1 | . . 1 Escape Stasis . | . . . Rewire . | . . . Trap . | . . . Miscellaneous . | . . . Route ------- -11/Scrapyard -10/Materials -9/Materials History --------- Turn | Location | Event 2 | -11/Scrapyard | Met Revision 17 83 | -11/Scrapyard | Discovered new exit (range 8) 200 | -11/Scrapyard | Entered Materials 343 | -10/Materials | Build established: Mutant 505 | -10/Materials | Core integrity fell below 50% 540 | -10/Materials | Destroyed 10 combat bots 546 | -10/Materials | Lost 5 parts (1n1u3w) 605 | -10/Materials | Discovered new exit (range 13) 635 | -10/Materials | Entered another Materials area 635 | -9/Materials | Evolved 2 slots: Propulsion x2 879 | -9/Materials | Repaired Aluminum Leg 914 | -9/Materials | Repaired Lgt. Assault Rifle 1055 | -9/Materials | Build established: Scavenger-Mutant 1343 | -9/Materials | Core integrity fell below 50% 1354 | -9/Materials | Core integrity fell below 20% 1358 | -9/Materials | Destroyed by G-47 Trooper with Particle Gun Last Messages --------------- K-01 Serf collects debris. G-34 Mercenary destroyed. Extracted 1 matter. K-01 Serf collects debris. Imp. Ion Engine destroyed. K-01 Serf collects debris. Aluminum Leg destroyed. K-01 Serf collects debris. Acquired Aluminum Leg. K-01 Serf collects debris. Shield Generator destroyed. Lgt. Assault Rifle destroyed. Kicked G-47 Trooper out of the way. Kicked G-47 Trooper. Kicked G-47 Trooper out of the way. Kicked G-47 Trooper. Kicked G-47 Trooper out of the way. Aluminum Leg destroyed. Slammed into G-47 Trooper. [Achievement: First Step to Greatness] Map ----- +----------------------------------------------------+ | ?????????????????????????????????????????????????? | | ?????????????????????????????????????????????????? | | ?????????????????????????????????????????????????? | | ?????????????????????????????????????????????????? | | ?????????????????????????????????????????????????? | | ?????????????????????????????????????????????????? | | ?????????????????????????????????????????????????? | | ?????????????????????????????????????????????????? | | ?????????????????????????????????????????????????? | | ?????????????????????????? #???????????????????? | | ?????????????????????????# t #???????????????????? | | ?????????????????????????+ +???????????????????? | | ?????????????????????????# #???????????????????? | | ?????????????????????????# #???????????????????? | | ?????????????????????????# #???????????????????? | | ?????????????????????????# #???????????????????? | | ?????????????????????????# #???????????????????? | | ?????????????????????????# ########????????????? | | ?????????????????????????# ## #????????????? | | ?????????????????????????# ## T #????????????? | | ???????????#?????????????# ## #????????????? | | ?????####### !??????????## ## #????????????? | | ?????# ###+##########%%!k # #????????????? | | ?????# !*[ *!=*%[%[ # """ #????????????? | | ?????# [ %%==m%%! + """ #????????????? | | ###### = [ !*%=g@% # """ #????????????? | | ! # = % ###+########## # #????????????? | | =! ## * ##? ???????## ## #????????????? | | [! *## #?? ??????#gg ## #????????????? | | """[## #? """ ?????# ## #????????????? | | """ ## #? """"" #????# ########????????????? | | "" !## ## """"" *#????# g#???????????????????? | | ===## ## """"" #????# #???????????????????? | | ## ## ""????#????# #???????????????????? | | ##+### # ???????????# #???????????????????? | | # ????????????# #???????????????????? | | #?????????????# #???????????????????? | | #?????????????# #???????????????????? | | ###### #?????????????# ???????????????????? | | ?????### #?????????????? ???????????????????? | | ???????# #?????????????? ???????????????????? | | ??????? #??????????????####???????????????????? | | ???????# ????????????????????????????????????? | | ???????# #???????????????????????????????????? | | ???????# #???????????????????????????????????? | | ???????# #???????????????????????????????????? | | ???????# #???????????????????????????????????? | | ???????? #???????????????????????????????????? | | ???????? ???????????????????????????????????? | | ???????? ??????????????????????????????????? | +----------------------------------------------------+ Best States ------------- Heat Dissipation 28 Energy Generation 12 Energy Capacity 265 Matter Stores 350 Matter Capacity 350 Sight Range 16 Terrain Scan Range 16 Terrain Scan Density 10 ECM Strength 1 Evasion (%) 55 Recoil Reduction 2 Item Schematics ----------------- None Robot Schematics ------------------ None Fabricated ------------ Nothing Alien Tech Used ----------------- None Achievements -------------- Crack Shot Everything Is Under Control First Step to Greatness One Hack Too Far Part-time Mechanic Party Time Storm Trooper Universal Adapter Challenges ------------ None Game ------ Seed MakeshiftResetProcessor Manual? 0 Play Time 00:31:16 Cumulative 0.5 hours Start 2024.04.01 @ 18:23:25 End 2024.04.01 @ 18:57:37 Sessions 1 Manual Loads 0 Difficulty Rogue Special Mode None Game No. 1 Rogue 1 Adventurer 0 Explorer 0 Win Type - Total 0 Types 0/0/0/0/0/0/0/0/0 Lore% 0 Gallery% 1 Achievement% 3 Wizard Run 0 Options --------- Layout 1 ASCII 0 Keyboard 0 Movement Arrows Keybinds 0 Fullscreen 1 Font 24/Smallcaps Map View 50x35 Zoom Use 0% Tactical HUD 0 Map Filters NONE Filters NONE Steam 0 RUN: 17a91b61-bb15-4870-bad7-b9b01d148a85